bitfinex-derivatives/quotes_SOLF0:USTF0_20251023
["timestamp","ask_amount","ask_price","bid_price","bid_amount"]
[1761183057242,2.98,180.92,180.88,46.54]
[1761183057443,2.98,180.9,180.88,46.54]
[1761183057641,7.15727023,180.89,180.84,2.7]
[1761183057840,2.98,180.87,180.84,51.21252452]
[1761183058144,2.98,180.91,180.84,51.21252452]
[1761183058346,6.93179561,180.9,180.84,51.21252452]
[1761183058542,2.75,180.88,180.84,51.21252452]
[1761183058950,2.75,180.88,180.84,49.24]
[1761183059446,4.18254749,180.87,180.84,49.24]
[1761183059656,2.75,180.88,180.84,49.24]
[1761183059846,2.75,180.91,180.85,2.72]
[1761183060045,2.75,180.89,180.85,2.72]
[1761183060249,4.18247417,180.88,180.85,2.72]
[1761183060450,2.75,180.89,180.85,2.72]
[1761183060649,4.18341899,180.88,180.85,2.72]
[1761183060949,2.75,180.89,180.85,2.72]
[1761183061149,4.18341899,180.88,180.85,2.72]
[1761183061347,7.91075031,180.92,180.88,2.72]
[1761183061646,6.81238942,180.95,180.9,2.72]
[1761183061647,4.18435072,180.91,180.9,2.72]
[1761183061950,4.18435072,180.91,180.9,4.69252452]
[1761183062350,4.18435072,180.91,180.9,1.97252452]
[1761183062649,2.75,180.9,180.88,48.51252452]
[1761183062847,4.18435072,180.89,180.88,48.51252452]
[1761183063246,2.75,180.88,180.84,2.72]
[1761183063447,6.93435072,180.87,180.81,2.72]
[1761183063639,6.93692321,180.86,180.85,1.97252452]
[1761183063843,6.93692321,180.86,180.83,1.97252452]
[1761183064047,2.75,180.86,180.83,1.97252452]
[1761183064552,2.75,180.86,180.83,4.69252452]
[1761183064950,4.18684715,180.85,180.83,4.69252452]
[1761183065152,2.75,180.86,180.83,4.69252452]
[1761183065347,4.18709115,180.85,180.83,4.69252452]
[1761183065546,2.75,180.86,180.83,4.69252452]
[1761183065846,2.75,180.86,180.85,1.97252452]
[1761183066049,6.93676291,180.86,180.85,1.97252452]
[1761183068552,6.93676291,180.86,180.83,2.72]
[1761183068852,2.75,180.86,180.85,1.97252452]
[1761183069047,6.93816696,180.86,180.85,1.97252452]
[1761183076462,2.75,180.86,180.85,1.97252452]
[1761183077254,6.93174371,180.86,180.85,1.97252452]
[1761183077460,2.75,180.86,180.85,1.97252452]
[1761183081163,2.75,180.89,180.85,4.69252452]
[1761183081461,6.93089837,180.88,180.87,1.97252452]
[1761183081859,2.75,180.91,180.88,2.72]
[1761183082059,5.16075031,180.94,180.89,4.69252452]
[1761183082257,2.75,180.92,180.91,1.97252452]
[1761183082659,2.75,180.92,180.89,3.07947951]
[1761183082958,2.75,180.92,180.89,5.79947951]
[1761183084161,2.72,180.93,180.9,2.75]
[1761183084757,7.62485805,180.95,180.9,2.75]
[1761183085067,2.72,180.97,180.92,5.82947951]
[1761183085468,2.72,180.97,180.93,2.75]
[1761183085668,2.72,180.96,180.93,2.75]
[1761183086568,2.72,180.97,180.93,2.75]
[1761183090763,4.90264593,181.0,180.93,2.75]
[1761183090964,2.83,180.99,180.96,2.99]
[1761183092261,2.83,181.01,180.96,2.99]
[1761183092457,7.73264593,181.01,180.96,2.99]
[1761183092656,2.83,181.01,180.96,2.99]
[1761183092868,2.83,181.0,180.96,2.99]
[1761183093267,4.90264593,181.01,180.98,6.06947951]
[1761183093572,2.83,181.01,180.98,6.06947951]
[1761183093767,7.73264593,181.03,180.99,2.99]
[1761183093964,4.15463575,181.02,180.99,2.99]
[1761183094164,2.83,181.03,180.99,2.99]
[1761183094466,4.89870814,181.05,180.99,2.99]
[1761183094658,4.15283859,181.04,180.99,2.99]
[1761183094858,4.15283859,181.03,181.01,3.07947951]
[1761183095060,5.16075031,181.08,181.01,3.07947951]
[1761183095061,2.83,181.07,181.01,3.07947951]
[1761183095263,2.83,181.05,180.97,3.07947951]
[1761183095558,2.83,181.05,180.98,2.99]
[1761183095559,6.98267289,181.04,180.98,2.99]
[1761183095763,4.15267289,181.03,180.98,2.99]
[1761183095959,4.15267289,181.02,180.98,2.99]
[1761183096166,2.83,181.07,180.98,2.99]
[1761183096366,4.14955183,181.06,180.98,2.99]
[1761183096565,4.14955183,181.05,180.98,2.99]
[1761183096765,4.14955183,181.04,180.98,2.99]
[1761183097069,3.07947951,181.1,180.98,2.99]
[1761183097070,2.83,181.05,180.98,2.99]
[1761183097266,4.14947011,181.04,180.98,2.99]
[1761183097471,2.83,181.05,180.98,2.99]
[1761183097672,4.14812649,181.04,180.98,2.99]
[1761183097872,2.83,181.05,180.98,2.99]
[1761183098072,4.14812649,181.04,180.98,2.99]
[1761183098271,2.83,181.05,180.98,2.99]
[1761183098570,4.1468396,181.04,180.98,2.99]
[1761183098873,2.83,181.05,180.98,2.99]
[1761183099066,4.1468396,181.04,180.98,2.99]
[1761183099261,2.83,181.05,180.98,2.99]
[1761183099467,4.14549581,181.04,180.98,2.99]
[1761183099775,2.83,181.05,180.98,2.99]
[1761183100074,4.14549581,181.04,180.98,2.99]
[1761183100274,9.03605843,181.07,180.98,2.99]
[1761183100469,4.14419331,181.06,180.98,2.99]
[1761183100670,4.14419331,181.05,180.98,2.99]
[1761183100869,2.83,181.08,180.98,2.99]
[1761183100870,4.14419331,181.07,180.98,2.99]
[1761183101062,2.83,181.08,180.98,2.99]
[1761183101467,2.83,181.08,181.0,3.07947951]
[1761183101771,6.97174789,181.1,181.01,2.99]
[1761183102075,4.14174789,181.09,181.01,2.99]
[1761183102274,2.83,181.1,181.01,2.99]
[1761183102575,2.83,181.08,181.01,2.99]
[1761183102971,2.83,181.07,181.01,2.99]
[1761183105282,2.83,181.07,180.98,2.99]
[1761183105575,4.13645488,181.07,180.98,2.99]
[1761183105761,2.83,181.07,180.98,2.99]
[1761183105968,4.13645488,181.06,180.99,2.99]
[1761183106168,2.83,181.09,181.02,6.06947951]
[1761183106473,9.01138841,181.12,181.06,2.99]
[1761183106679,2.83,181.1,181.06,2.99]
[1761183106878,6.964783,181.13,181.06,2.99]
[1761183107069,4.13345698,181.12,181.06,2.99]
[1761183107271,2.83,181.13,181.06,2.99]
[1761183107468,6.96345698,181.13,181.06,2.99]
[1761183107682,4.13345698,181.12,181.06,2.99]
[1761183108070,2.83,181.13,181.06,2.99]
[1761183108473,6.96345698,181.13,181.06,2.99]
[1761183108669,2.83,181.13,181.06,2.99]
[1761183109271,6.95913557,181.13,181.06,2.99]
[1761183109472,2.83,181.13,181.06,2.99]
[1761183111783,2.83,181.12,181.06,2.99]
[1761183113782,2.83,181.12,181.03,2.99]
[1761183113988,2.83,181.1,181.03,2.99]
[1761183114184,2.83,181.09,181.03,2.99]
[1761183114694,2.83,181.12,181.03,2.99]
[1761183115095,2.83,181.11,181.03,2.99]
[1761183117392,2.83,181.1,181.03,2.99]
[1761183118885,6.95566837,181.1,181.03,2.99]
[1761183119085,6.91591207,181.09,181.03,2.99]
[1761183119284,2.79,181.09,181.03,2.99]
[1761183121699,2.79,181.09,180.96,19.68947951]
[1761183121904,2.79,181.09,180.97,2.72]
[1761183122100,2.79,181.08,180.97,2.72]
[1761183122601,9.14419692,181.1,180.99,2.72]
[1761183122806,2.79,181.11,180.99,2.72]
[1761183123003,9.14396327,181.1,180.99,2.72]
[1761183123206,2.79,181.1,180.99,2.72]
[1761183125205,4.13777237,181.09,180.99,2.72]
[1761183125404,2.79,181.1,180.99,2.72]
[1761183125806,2.79,181.13,181.01,3.07947951]
[1761183126102,9.15624379,181.12,181.02,2.72]
[1761183126310,4.14019587,181.11,181.02,2.72]
[1761183126609,2.79,181.11,181.02,2.72]
[1761183127509,2.79,181.15,181.02,2.72]
[1761183127710,9.16533612,181.14,181.02,2.72]
[1761183127902,11.95533612,181.13,181.02,2.72]
[1761183128104,9.16533612,181.12,181.02,2.72]
[1761183128305,2.79,181.13,181.02,2.72]
[1761183128607,9.16845058,181.12,181.05,2.72]
[1761183128812,5.16075031,181.18,181.08,2.72]
[1761183129010,9.16768454,181.17,181.08,2.72]
[1761183129214,9.16768454,181.16,181.08,2.72]
[1761183129505,9.16768454,181.15,181.08,2.72]
[1761183129709,4.1426381,181.14,181.08,2.72]
[1761183129908,2.79,181.18,181.08,2.72]
[1761183130110,11.94889415,181.17,181.08,2.72]
[1761183130302,9.15889415,181.16,181.08,2.72]
[1761183130504,9.15889415,181.15,181.08,2.72]
[1761183130700,6.93316553,181.14,181.08,2.72]
[1761183130905,11.95031229,181.13,181.08,2.72]
[1761183131208,4.13545863,181.18,181.08,2.72]
[1761183131209,2.79,181.11,181.08,2.72]
[1761183131510,2.79,181.11,181.03,2.72]
[1761183131711,11.95544718,181.1,181.03,2.72]
[1761183132017,11.95613613,181.09,181.03,2.72]
[1761183132200,6.93577651,181.08,181.03,2.72]
[1761183132513,2.79,181.12,181.03,2.72]
[1761183132712,11.95905829,181.11,181.03,2.72]
[1761183133015,4.14739078,181.1,181.03,2.72]
[1761183133218,2.79,181.11,181.03,2.72]
[1761183133506,9.17086364,181.1,181.03,2.72]
[1761183133701,4.14904506,181.09,181.03,2.72]
[1761183133904,2.79,181.11,181.03,2.72]
[1761183134100,9.17294263,181.1,181.03,2.72]
[1761183134304,4.14912745,181.09,181.03,2.72]
[1761183134507,2.79,181.11,181.03,2.72]
[1761183134704,9.17693529,181.1,181.03,2.72]
[1761183134916,2.79,181.11,181.03,2.72]
[1761183134917,2.79,181.14,181.05,3.07947951]
[1761183135109,10.21858413,181.2,181.06,2.72]
[1761183135110,9.17627895,181.13,181.06,2.72]
[1761183135307,2.79,181.17,181.06,2.72]
[1761183135612,9.17589493,181.16,181.06,2.72]
[1761183135817,9.17589493,181.15,181.06,2.72]
[1761183136016,9.17589493,181.14,181.06,2.72]
[1761183136209,4.15086418,181.13,181.06,2.72]
[1761183136417,2.79,181.17,181.06,2.72]
[1761183136616,9.17735697,181.16,181.06,2.72]
[1761183136813,9.17735697,181.15,181.06,4.9696]
[1761183137017,4.15153077,181.14,181.07,2.72]
[1761183137218,6.81238942,181.22,181.07,2.72]
[1761183137219,5.16075031,181.28,181.14,2.72]
[1761183137418,2.79,181.35,181.28,2.72]
[1761183137618,2.79,181.4,181.34,2.72]
[1761183137816,5.0125101,181.39,181.37,2.72]
[1761183138010,2.79,181.41,181.34,2.72]
[1761183138222,5.01040034,181.4,181.34,2.72]
[1761183138426,4.99669728,181.39,181.34,2.72]
[1761183138622,2.79,181.38,181.33,3.07947951]
[1761183138824,5.16075031,181.46,181.3,2.72]
[1761183139027,2.79,181.44,181.3,2.72]
[1761183139320,2.79,181.42,181.3,2.72]
[1761183139524,7.78685561,181.41,181.3,2.72]
[1761183139727,4.99685561,181.4,181.3,2.72]
[1761183139926,2.79,181.41,181.3,2.72]
[1761183142830,2.79,181.41,181.32,2.72]
[1761183143736,2.79,181.41,181.31,4.82721615]
[1761183143737,2.85,181.44,181.36,2.89]
[1761183143929,2.85,181.47,181.36,2.89]
[1761183147334,2.85,181.47,181.33,2.89]
[1761183150120,2.88,181.46,181.33,2.89]
[1761183150535,2.88,181.45,181.33,2.89]
[1761183150730,2.88,181.45,181.29,2.86]
[1761183150924,2.88,181.45,181.33,2.86]
[1761183152728,2.88,181.45,181.33,16.61]
[1761183152926,2.88,181.45,181.36,7.68721615]
[1761183153130,2.88,181.45,181.37,2.86]
[1761183154136,2.88,181.54,181.37,2.86]
[1761183154430,2.88,181.53,181.37,2.86]
[1761183154734,2.88,181.52,181.37,2.86]
[1761183156027,2.88,181.52,181.38,4.9609]
[1761183156328,2.88,181.52,181.41,2.86]
[1761183158740,2.88,181.57,181.45,2.86]
[1761183162140,2.88,181.57,181.46,2.86]
[1761183162633,2.88,181.57,181.47,2.86]
[1761183163335,2.88,181.57,181.42,2.86]
[1761183163934,2.88,181.56,181.42,2.86]
[1761183166136,2.88,181.56,181.44,2.86]
[1761183167041,2.88,181.56,181.45,2.86]
[1761183171240,2.88,181.54,181.45,2.86]
[1761183171438,4.84816346,181.53,181.45,2.86]
[1761183171643,4.84816346,181.52,181.45,2.86]
[1761183171838,4.84816346,181.53,181.45,2.86]
[1761183172041,4.84816346,181.52,181.45,2.86]
[1761183172234,4.84816346,181.51,181.45,2.86]
[1761183172439,4.84816346,181.52,181.45,2.86]
[1761183172646,4.84816346,181.51,181.45,2.86]
[1761183172846,7.72816346,181.52,181.45,2.86]
[1761183173041,2.88,181.5,181.41,2.86]
[1761183173235,2.88,181.48,181.38,2.86]
[1761183173432,7.72816346,181.47,181.38,2.86]
[1761183173631,2.88,181.47,181.38,2.86]
[1761183174240,4.91996744,181.46,181.38,2.86]
[1761183174442,2.88,181.47,181.38,2.86]
[1761183174642,2.88,181.52,181.38,2.86]
[1761183174949,2.88,181.5,181.38,2.86]
[1761183175247,7.79969085,181.49,181.38,2.86]
[1761183175445,4.91969085,181.48,181.38,2.86]
[1761183175647,4.91969085,181.47,181.38,2.86]
[1761183175954,2.88,181.48,181.38,4.9608]
[1761183176246,2.88,181.48,181.39,2.86]
[1761183177245,4.92834948,181.47,181.39,2.86]
[1761183177446,2.88,181.48,181.39,2.86]
[1761183177744,4.92843863,181.47,181.39,2.86]
[1761183177946,2.88,181.48,181.39,2.86]
[1761183178154,4.92844008,181.47,181.39,2.86]
[1761183178349,2.88,181.48,181.39,2.86]
[1761183178652,4.93720584,181.47,181.39,2.86]
[1761183178852,2.88,181.48,181.39,2.86]
[1761183179044,4.93720359,181.47,181.39,7.8206]
[1761183179243,4.94725124,181.46,181.4,2.82]
[1761183179442,6.8354527,181.5,181.4,2.82]
[1761183179649,4.94721842,181.49,181.42,2.82]
[1761183179849,4.94721842,181.48,181.42,2.82]
[1761183180049,2.83,181.5,181.42,2.82]
[1761183180355,4.88669174,181.49,181.42,2.82]
[1761183180554,4.88669174,181.48,181.42,2.82]
[1761183180854,2.83,181.5,181.42,2.82]
[1761183181054,4.88669174,181.49,181.42,2.82]
[1761183181350,8.90972689,181.48,181.42,2.82]
[1761183181554,2.83,181.5,181.42,2.82]
[1761183181555,4.88669174,181.47,181.42,2.82]
[1761183181759,2.83,181.5,181.42,2.82]
[1761183181943,8.92202119,181.49,181.42,2.82]
[1761183182141,8.92202119,181.48,181.42,2.82]
[1761183182349,8.92202119,181.47,181.42,2.82]
[1761183182549,4.89898604,181.46,181.42,2.82]
[1761183182750,2.83,181.5,181.42,2.82]
[1761183182951,8.93259564,181.49,181.42,2.82]
[1761183183154,8.93259564,181.48,181.42,2.82]
[1761183183354,2.83,181.5,181.42,2.82]
[1761183183564,8.8609803,181.49,181.42,2.82]
[1761183183753,8.8609803,181.48,181.42,2.82]
[1761183183955,2.83,181.5,181.42,2.82]
[1761183184157,8.86098152,181.49,181.42,2.82]
[1761183184352,8.86098152,181.48,181.42,2.82]
[1761183184558,2.83,181.5,181.42,2.82]
[1761183184761,8.85886211,181.49,181.42,2.82]
[1761183184954,8.85886211,181.48,181.42,2.82]
[1761183185149,6.81238942,181.54,181.44,4.9594]
[1761183185150,5.16075031,181.53,181.44,4.9594]
[1761183185352,8.8587197,181.52,181.45,2.82]
[1761183185561,8.85791236,181.51,181.45,2.82]
[1761183185761,2.83,181.54,181.45,2.82]
[1761183186062,4.02436326,181.53,181.45,2.82]
[1761183186256,4.02436326,181.52,181.45,2.82]
[1761183186449,4.02436326,181.51,181.45,2.82]
[1761183186653,2.83,181.54,181.45,2.82]
[1761183186851,4.02483098,181.53,181.45,2.82]
[1761183187053,2.83,181.54,181.46,2.82]
[1761183187054,4.02483098,181.52,181.46,2.82]
[1761183187250,4.02483098,181.51,181.46,2.82]
[1761183187464,4.02483098,181.51,181.35,26.75051615]
[1761183187465,5.16075031,181.58,181.49,2.82]
[1761183187663,4.02400237,181.57,181.49,2.82]
[1761183187859,4.02400237,181.56,181.49,2.82]
[1761183188058,4.02400237,181.55,181.49,2.82]
[1761183188255,2.83,181.56,181.49,2.82]
[1761183188564,4.02470508,181.55,181.49,2.82]
[1761183188863,2.83,181.56,181.49,2.82]
[1761183189664,4.0235548,181.55,181.49,2.82]
[1761183189965,6.81238942,181.61,181.49,2.82]
[1761183189966,6.8535548,181.54,181.49,2.82]
[1761183190157,4.0235548,181.53,181.49,2.82]
[1761183190357,2.83,181.54,181.49,2.82]
[1761183190558,4.02402196,181.53,181.49,2.82]
[1761183190753,2.83,181.54,181.49,2.82]
[1761183190969,2.83,181.52,181.47,37.18]
[1761183191464,2.83,181.52,181.48,2.82]
[1761183191762,2.83,181.56,181.48,2.82]
[1761183191962,4.02428961,181.55,181.48,2.82]
[1761183192156,5.16075031,181.6,181.49,4.9578]
[1761183192362,4.0235588,181.59,181.5,2.82]
[1761183192566,2.83,181.6,181.5,2.82]
[1761183192761,2.83,181.6,181.53,4.9569]
[1761183192966,2.83,181.6,181.53,7.7769]
[1761183193169,2.83,181.6,181.54,2.82]
[1761183193357,2.83,181.64,181.55,2.82]
[1761183193559,4.02172273,181.63,181.55,2.82]
[1761183193756,2.83,181.64,181.55,2.82]
[1761183193956,4.02159494,181.63,181.55,2.82]
[1761183194163,2.83,181.64,181.55,2.82]
[1761183195570,2.83,181.64,181.56,2.82]
[1761183198869,2.83,181.62,181.51,4.9575]
[1761183199165,4.02045145,181.61,181.5,2.82]
[1761183199363,2.83,181.6,181.52,2.82]
[1761183199570,10.21858413,181.7,181.49,4.82721615]
[1761183199571,2.83,181.63,181.54,2.82]
[1761183200273,2.83,181.63,181.55,2.82]
[1761183201967,2.83,181.63,181.56,2.82]
[1761183202472,5.16075031,181.71,181.56,2.82]
[1761183202473,2.83,181.7,181.56,2.82]
[1761183202771,2.83,181.68,181.57,4.9556]
[1761183202964,2.83,181.68,181.58,2.82]
[1761183203472,2.83,181.68,181.59,2.84]
[1761183204174,2.83,181.68,181.6,2.84]
[1761183205475,2.87,181.72,181.61,2.84]
[1761183206573,2.87,181.76,181.64,2.84]
[1761183207178,2.87,181.76,181.65,2.84]
[1761183208679,6.81238942,181.84,181.64,4.9537]
[1761183208680,2.78,181.8,181.64,2.87]
[1761183209678,2.78,181.8,181.69,2.87]
[1761183211378,2.78,181.8,181.65,2.87]
[1761183212290,2.78,181.79,181.65,2.87]
[1761183213283,2.78,181.79,181.66,2.87]
[1761183214486,2.78,181.79,181.68,2.87]
[1761183215081,2.78,181.79,181.59,24.34788997]
[1761183215082,2.78,181.79,181.7,2.87]
[1761183216182,3.97809409,181.85,181.71,2.87]
[1761183216381,2.78,181.85,181.71,2.87]
[1761183217881,2.78,181.91,181.75,2.87]
[1761183218785,2.78,181.91,181.71,2.87]
[1761183219290,2.78,181.91,181.74,7.8212]
[1761183220377,2.78,181.91,181.75,2.87]
[1761183220582,2.78,181.9,181.75,2.87]
[1761183220881,2.78,181.89,181.75,2.87]
[1761183221088,2.78,181.89,181.71,2.87]
[1761183221276,2.78,181.87,181.71,2.87]
[1761183222987,2.78,181.87,181.72,2.87]
[1761183224390,2.78,181.86,181.72,2.87]
[1761183227495,2.78,181.85,181.72,2.87]
[1761183228095,2.78,181.84,181.72,2.87]
[1761183229399,2.78,181.83,181.72,2.87]
[1761183230997,7.73788997,181.86,181.69,37.8125]
[1761183230998,2.78,181.81,181.7,2.87]
[1761183231205,2.78,181.79,181.7,2.87]
[1761183233599,2.78,181.77,181.7,2.87]
[1761183235008,2.78,181.76,181.69,32.86]
[1761183236907,2.78,181.74,181.64,2.87]
[1761183237108,10.21858413,181.83,181.64,2.87]
[1761183237109,2.78,181.72,181.64,2.87]
[1761183237701,2.78,181.7,181.64,2.87]
[1761183237905,2.78,181.7,181.6,2.87]
[1761183238108,2.78,181.69,181.6,2.87]
[1761183244820,2.83,181.67,181.6,2.87]
[1761183246422,2.83,181.77,181.62,2.77]
[1761183246719,2.83,181.77,181.7,2.77]
[1761183247111,2.83,181.77,181.72,5.82100301]
[1761183247916,2.83,181.75,181.68,5.82100301]
[1761183248710,2.83,181.75,181.68,2.77]
[1761183251312,2.83,181.75,181.68,4.9526]
[1761183251517,2.83,181.75,181.69,2.77]
[1761183255426,2.83,181.8,181.7,2.77]
[1761183255623,6.85467665,181.79,181.7,2.77]
[1761183255919,2.83,181.79,181.7,2.77]
[1761183258326,2.83,181.79,181.71,2.77]
[1761183258628,2.83,181.82,181.71,2.77]
[1761183259121,2.83,181.82,181.75,2.77]
[1761183260618,2.83,181.8,181.71,2.77]
[1761183260820,2.83,181.78,181.69,10.4977343]
[1761183261416,2.83,181.78,181.7,2.77]
[1761183262423,4.02530568,181.77,181.7,2.77]
[1761183262729,2.83,181.76,181.7,2.77]
[1761183263823,2.83,181.76,181.67,4.953]
[1761183263824,2.83,181.76,181.66,46.14]
[1761183264123,2.88,181.74,181.67,2.69]
[1761183264628,6.90332705,181.78,181.69,2.69]
[1761183264927,2.88,181.78,181.69,2.69]
[1761183265128,2.88,181.78,181.71,2.69]
[1761183270736,2.88,181.78,181.71,4.64273875]
[1761183271936,6.75603046,181.77,181.71,4.64273875]
[1761183272234,2.73,181.77,181.71,4.64273875]
[1761183274637,2.73,181.77,181.72,2.69]
[1761183275135,4.02714556,181.76,181.69,2.69]
[1761183275439,2.73,181.75,181.69,4.64273875]
[1761183277640,4.02797789,181.74,181.67,1.95273875]
[1761183277838,2.73,181.73,181.68,2.69]
[1761183279936,2.73,181.73,181.69,2.69]
[1761183280528,4.02790911,181.76,181.71,1.95273875]
[1761183280735,2.73,181.77,181.72,2.69]
[1761183280937,2.73,181.81,181.74,2.69]
[1761183281136,6.75713288,181.8,181.75,4.64273875]
[1761183281330,7.8518438,181.84,181.77,1.95273875]
[1761183281536,4.0266332,181.83,181.77,1.95273875]
[1761183281737,6.7566332,181.82,181.78,2.69]
[1761183281931,2.73,181.82,181.78,2.69]
[1761183282736,2.73,181.82,181.79,1.95273875]
[1761183283457,2.73,181.82,181.79,4.64273875]
[1761183285138,5.1218438,181.88,181.79,1.95273875]
[1761183285442,6.75139099,181.87,181.84,2.69]
[1761183285646,4.02139099,181.86,181.84,2.69]
[1761183285948,4.02139099,181.85,181.83,4.64273875]
[1761183286141,2.73,181.87,181.83,4.64273875]
[1761183286341,4.01918849,181.86,181.83,4.64273875]
[1761183286549,2.73,181.87,181.83,4.64273875]
[1761183286752,4.02008365,181.86,181.83,4.64273875]
[1761183286945,2.73,181.87,181.83,4.64273875]
[1761183288546,2.73,181.9,181.84,2.69]
[1761183288755,2.73,181.88,181.84,2.69]
[1761183289052,6.74889067,181.87,181.84,2.69]
[1761183289255,2.73,181.87,181.84,2.69]
[1761183293048,4.68273875,181.87,181.79,2.69]
[1761183293258,2.73,181.85,181.79,2.69]
[1761183293558,2.73,181.85,181.76,9.59323875]
[1761183293758,2.73,181.85,181.77,2.69]
[1761183296652,2.73,181.83,181.76,1.95273875]
[1761183296854,2.73,181.83,181.75,7.83]
[1761183297055,1.95273875,181.83,181.75,7.83]
[1761183297353,2.73,181.82,181.75,7.83]
[1761183297860,2.73,181.82,181.76,2.69]
[1761183299251,2.98,181.8,181.75,5.14]
[1761183300362,2.98,181.78,181.7,1.95273875]
[1761183300557,2.98,181.78,181.7,4.77273875]
[1761183300751,4.00704878,181.77,181.7,2.82]
[1761183300951,2.98,181.76,181.7,2.82]
[1761183301355,2.98,181.74,181.66,4.77273875]
[1761183301555,2.98,181.74,181.67,2.82]
[1761183302363,2.98,181.72,181.65,46.1]
[1761183302661,2.98,181.72,181.65,48.92]
[1761183303566,4.93273875,181.72,181.65,48.92]
[1761183303758,2.98,181.71,181.65,46.1]
[1761183304059,2.98,181.69,181.65,46.1]
[1761183304362,2.98,181.69,181.6,4.77273875]
[1761183304363,2.98,181.69,181.61,2.82]
[1761183305057,2.98,181.68,181.61,2.82]
[1761183306955,2.98,181.67,181.59,2.82]
[1761183308464,1.95273875,181.66,181.57,48.05273875]
[1761183308668,2.98,181.65,181.57,46.1]
[1761183309960,1.95273875,181.66,181.58,2.82]
[1761183310167,2.98,181.68,181.62,2.82]
[1761183310561,7.07458255,181.74,181.63,1.95273875]
[1761183310768,2.98,181.72,181.63,4.77273875]
[1761183310965,2.98,181.72,181.65,4.77273875]
[1761183311167,2.98,181.72,181.68,2.82]
[1761183311469,2.98,181.77,181.69,1.95273875]
[1761183311660,2.98,181.76,181.69,1.95273875]
[1761183312365,1.95273875,181.78,181.69,1.95273875]
[1761183312571,1.95273875,181.76,181.67,1.95273875]
[1761183312773,2.98,181.75,181.67,1.95273875]
[1761183314267,2.98,181.75,181.69,1.95273875]
[1761183314978,2.98,181.75,181.68,2.82]
[1761183324876,2.98,181.75,181.65,6.01249984]
[1761183325180,2.98,181.75,181.66,2.96]
[1761183328276,2.7,181.74,181.66,2.96]
[1761183331184,3.8,181.74,181.57,46.1]
[1761183331384,4.00241781,181.77,181.54,2.75]
[1761183331385,2.69,181.65,181.54,2.75]
[1761183331686,3.05249984,181.63,181.54,2.75]
[1761183331887,2.69,181.62,181.54,2.75]
[1761183332092,2.69,181.65,181.54,2.75]
[1761183336686,4.03033322,181.67,181.57,2.75]
[1761183337283,2.69,181.68,181.57,2.75]
[1761183337489,4.0355103,181.67,181.57,2.75]
[1761183337691,2.69,181.68,181.57,2.75]
[1761183338186,6.7255103,181.68,181.59,4.9551]
[1761183338388,4.03614097,181.71,181.61,2.75]